bitfinex/quotes_SOLUSD_20240626
["timestamp","ask_amount","ask_price","bid_price","bid_amount"]
[1719432041286,4.24059753,137.93,137.88,18.1311]
[1719432041458,11.49069753,137.93,137.88,25.3836]
[1719432041659,4.24059753,137.93,137.88,25.3836]
[1719432041877,4.24059753,137.93,137.9,7.2515]
[1719432042087,4.24059753,137.93,137.9,18.1283]
[1719432042452,4.24059753,137.93,137.92,7.2505]
[1719432042659,4.24059753,137.93,137.9,25.3795]
[1719432042961,4.24059753,137.93,137.9,18.1283]
[1719432043159,4.24059753,137.93,137.88,6.2779]
[1719432043361,4.24059753,137.93,137.89,18.1294]
[1719432043565,4.24059753,137.93,137.9,7.2511]
[1719432043888,4.24059753,137.93,137.89,25.3811]
[1719432044069,4.24059753,137.93,137.91,18.127]
[1719432044272,4.24059753,137.93,137.91,25.378]
[1719432044777,4.24059753,137.93,137.91,25.3777]
[1719432044970,4.24059753,137.93,137.92,7.2505]
[1719432045483,4.24059753,137.93,137.92,27.2505]
[1719432045978,7.2471,137.99,137.93,18.1246]
[1719432046292,3.996,138.0,137.94,7.249]
[1719432046293,11.2427,138.0,137.94,7.249]
[1719432046583,7.247,137.99,137.94,7.2494]
[1719432046778,11.2425,138.0,137.94,7.2494]
[1719432047078,7.2486,137.96,137.88,6.4479]
[1719432047400,7.2474,137.99,137.93,7.25]
[1719432047581,7.2474,137.99,137.94,7.2495]
[1719432047878,3.996,138.0,137.95,7.2485]
[1719432048370,3.996,138.0,137.95,1.44958862]
[1719432048577,11.2425,138.0,137.95,1.44958862]
[1719432048979,7.247,137.99,137.94,18.1227]
[1719432049358,7.247,137.99,137.94,25.372]
[1719432049764,3.996,138.0,137.95,7.2488]
[1719432050079,3.996,138.0,137.94,25.3721]
[1719432050280,11.2424,138.0,137.94,25.3721]
[1719432050660,7.247,137.99,137.94,25.3721]
[1719432051082,11.2425,138.0,137.94,25.3721]
[1719432051283,3.996,138.0,137.94,18.1227]
[1719432051471,7.247,137.99,137.94,18.1227]
[1719432051777,7.247,137.99,137.94,25.3718]
[1719432051976,7.2469,137.99,137.94,25.3718]
[1719432052983,3.996,138.0,137.95,7.2485]
[1719432053168,3.996,138.0,137.96,18.1207]
[1719432053775,3.996,138.0,137.98,24.3311]
[1719432054092,3.996,138.0,137.99,14.5109]
[1719432054262,3.996,138.0,137.99,7.264]
[1719432054457,3.996,138.0,137.99,14.5109]
[1719432054683,0.8527538,138.06,138.02,7.2449]
[1719432054882,0.8527538,138.06,138.04,7.2442]
[1719432055184,0.8527538,138.06,138.03,7.2446]
[1719432055359,0.8527538,138.06,138.04,7.2442]
[1719432055562,0.8527538,138.06,138.02,7.264]
[1719432056982,8.0963538,138.06,138.02,7.264]
[1719432057282,0.8527538,138.06,137.98,25.3648]
[1719432057488,0.8527538,138.06,137.99,1.44823277]
[1719432057699,18.9617538,138.06,137.96,6.2634]
[1719432058184,7.2449,138.03,137.98,7.247]
[1719432058492,7.2444,138.04,137.98,7.247]
[1719432058669,7.2444,138.04,137.99,7.2468]
[1719432058990,0.8527538,138.06,137.99,25.3636]
[1719432059185,7.2438,138.05,138.0,7.2462]
[1719432059487,0.8527538,138.06,138.01,18.1138]
[1719432059667,0.8527538,138.06,138.04,7.244]
[1719432059867,0.8527538,138.06,138.05,7.2437]
[1719432060170,0.8527538,138.06,138.03,25.3561]
[1719432060576,0.8527538,138.06,138.03,25.356]
[1719432060869,0.8527538,138.06,138.05,7.2437]
[1719432061065,0.8527538,138.06,138.03,18.1115]
[1719432061269,0.8527538,138.06,138.05,7.2437]
[1719432061861,5.78407785,138.21,138.08,18.1051]
[1719432061862,7.239,138.15,138.08,18.1051]
[1719432062106,7.2374,138.17,138.11,7.2404]
[1719432062261,7.2374,138.17,138.1,18.1017]
[1719432062791,8.0895538,138.19,138.13,7.2391]
[1719432063001,7.237,138.18,138.13,7.2391]
[1719432063298,7.237,138.18,138.12,25.3393]
[1719432063475,0.8527538,138.19,138.14,18.097]
[1719432063686,8.0893538,138.19,138.14,18.097]
[1719432064190,7.2371,138.18,138.13,7.2391]
[1719432065192,8.0891538,138.19,138.13,7.2391]
[1719432065406,0.8527538,138.19,138.11,18.1007]
[1719432065606,0.8527538,138.19,138.1,43.467]
[1719432065891,8.0891538,138.19,138.14,7.2389]
[1719432066663,8.0891538,138.19,138.13,7.2394]
[1719432067082,8.0891538,138.19,138.12,18.0994]
[1719432067083,7.2378,138.17,138.12,18.0994]
[1719432067490,8.0895538,138.19,138.12,18.0994]
[1719432067687,7.237,138.18,138.13,7.2395]
[1719432067893,7.237,138.18,138.12,25.3393]
[1719432068078,7.2384,138.16,138.1,7.264]
[1719432068278,0.8527538,138.19,138.1,7.264]
[1719432068485,7.2381,138.16,138.11,7.2403]
[1719432068693,7.2384,138.16,138.1,7.264]
[1719432068879,18.0928,138.18,138.06,25.3712]
[1719432069083,7.2397,138.13,138.08,7.2421]
[1719432069285,7.2396,138.13,138.07,7.2426]
[1719432069580,0.34,138.18,138.08,18.1048]
[1719432069782,0.8527538,138.19,138.12,7.24]
[1719432069994,0.8527538,138.19,138.1,18.1023]
[1719432070293,7.238,138.16,138.1,18.1023]
[1719432070473,7.238,138.16,138.06,7.264]
[1719432070474,0.8527538,138.19,138.07,18.1059]
[1719432070676,0.34,138.18,138.07,18.1059]
[1719432071000,7.2394,138.14,138.09,18.1036]
[1719432071207,7.2385,138.15,138.09,18.1036]
[1719432071494,0.17,138.18,138.11,18.1011]
[1719432071702,7.4074,138.18,138.11,18.1011]
[1719432071874,7.2374,138.18,138.11,18.1011]
[1719432072074,7.2374,138.18,138.13,7.2394]
[1719432072485,22.7013,138.18,138.06,7.264]
[1719432072683,22.7013,138.18,138.01,65.4593]
[1719432072684,20.0,138.17,138.01,65.4593]
[1719432072900,7.241,138.11,138.05,7.2436]
[1719432073069,18.0957,138.16,138.06,18.1075]
[1719432073707,0.34,138.15,138.07,7.2425]
[1719432074006,7.2404,138.12,138.06,25.3505]
[1719432074408,6.1955,138.1,137.97,65.3933]
[1719432074574,18.1089,138.06,137.97,40.0093]
[1719432074776,18.1089,138.06,137.98,7.247]
[1719432075000,7.2443,138.04,137.98,7.247]
[1719432075299,7.2448,138.03,137.98,7.247]
[1719432075470,18.2749,138.09,137.93,51.7978]
[1719432075471,7.2459,138.01,137.94,18.123]
[1719432075673,6.1955,138.1,137.96,107.264]
[1719432075904,7.2438,138.05,137.96,7.264]
[1719432076103,7.2438,138.05,137.99,25.3632]
[1719432076402,7.2444,138.04,137.99,7.2464]
[1719432076708,18.1043,138.09,137.98,18.1182]
[1719432076906,6.1955,138.1,137.96,36.2415]
[1719432077075,21.3738,138.14,138.03,7.2444]
[1719432077280,0.34,138.13,137.98,6.5074]
[1719432077491,18.1029,138.1,138.0,7.2463]
[1719432077699,18.1029,138.1,137.98,24.6256]
[1719432077700,7.2441,138.05,137.98,24.6256]
[1719432077899,0.17,138.09,138.01,7.2457]
[1719432078198,18.1029,138.1,138.0,25.3613]
[1719432078403,18.1029,138.1,137.98,6.5074]
[1719432078583,7.2422,138.08,138.03,7.2447]
[1719432078783,7.2443,138.04,137.98,6.5074]
[1719432079106,6.405,138.06,137.94,6.0602]
[1719432079404,7.2475,137.98,137.92,18.126]
[1719432079699,7.2475,137.98,137.9,6.0602]
[1719432079700,7.2486,137.96,137.9,6.0602]
[1719432079902,18.1155,138.01,137.89,18.1301]
[1719432080089,6.4583,138.0,137.89,18.1301]
[1719432080282,7.2494,137.95,137.89,25.3821]
[1719432080482,6.2883,138.0,137.89,18.1301]
[1719432080880,7.249,137.95,137.89,25.3817]
[1719432081093,24.4053,138.0,137.89,18.1301]
[1719432081291,6.6273,138.08,137.96,6.3648]
[1719432081610,6.6273,138.08,138.01,7.2454]
[1719432081775,6.6273,138.08,138.0,18.1149]
[1719432082135,6.6273,138.08,138.02,18.1121]
[1719432082421,7.2432,138.06,138.01,7.2453]
[1719432082706,7.2423,138.08,138.03,7.2446]
[1719432083010,7.2423,138.08,138.03,7.2447]
[1719432083300,7.2436,138.06,138.01,18.1134]
[1719432083603,18.1011,138.12,138.02,7.245]
[1719432083900,6.6201,138.13,137.97,36.2384]
[1719432084111,7.2425,138.08,138.02,7.2448]
[1719432084280,7.2399,138.13,138.07,7.2425]
[1719432084485,256.0,138.15,138.06,18.1073]
[1719432084680,15.0265,138.16,138.06,18.1073]
[1719432084907,6.2293,138.17,138.09,7.2415]
[1719432085095,6.2293,138.17,138.08,18.1045]
[1719432085096,7.2385,138.15,138.1,7.241]
[1719432085283,6.2293,138.17,138.11,18.1013]
[1719432085602,7.2374,138.18,138.11,18.1013]
[1719432085907,389.5,138.27,138.06,16.2901]
[1719432085908,18.0846,138.24,138.14,18.0975]
[1719432086110,24.2742,138.29,138.17,18.0936]
[1719432086302,18.0817,138.27,138.16,7.2375]
[1719432086498,18.0817,138.27,138.14,6.3478]
[1719432086693,7.2343,138.23,138.16,18.0938]
[1719432086903,7.2351,138.22,138.16,25.3316]
[1719432087213,18.0817,138.27,138.12,36.1987]
[1719432087503,18.0817,138.27,138.13,18.0986]
[1719432087912,7.2359,138.2,138.14,7.2389]
[1719432088087,8.0892538,138.19,138.13,25.3381]
[1719432088282,0.8527538,138.19,138.13,18.0986]
[1719432088508,0.8527538,138.19,138.14,7.2389]
[1719432089203,0.8527538,138.19,138.1,18.1026]
[1719432089510,18.0945,138.17,138.07,18.1066]
[1719432089706,0.8527538,138.19,138.14,7.2389]
[1719432090404,8.0891538,138.19,138.13,7.2394]
[1719432090907,7.237,138.18,138.12,25.3398]
[1719432091112,8.0892538,138.19,138.14,7.239]
[1719432091413,8.0892538,138.19,138.14,25.3357]
[1719432091414,0.8527538,138.19,138.14,25.3357]
[1719432091586,8.0891538,138.19,138.14,18.0967]
[1719432091791,0.8527538,138.19,138.1,43.469]
[1719432091985,0.8527538,138.19,138.1,7.264]
[1719432092187,7.2371,138.18,138.12,7.2399]
[1719432092413,0.8527538,138.19,138.12,7.2399]
[1719432092606,0.8527538,138.19,138.1,18.1025]
[1719432092800,0.8527538,138.19,138.07,18.1064]
[1719432093006,18.4333,138.18,138.07,18.1064]
[1719432093307,7.2392,138.14,138.09,7.2415]
[1719432093508,7.2392,138.14,138.08,7.242]
[1719432093724,7.2392,138.14,138.07,18.1064]
[1719432093725,7.2402,138.12,138.07,18.1064]
[1719432093893,7.2408,138.11,138.05,7.2436]
[1719432094221,37.0349538,138.19,138.01,33.9143]
[1719432094222,18.0984,138.14,138.01,33.9143]
[1719432094391,7.2422,138.08,138.02,7.2449]
[1719432094903,18.1009,138.12,138.01,18.1141]
[1719432095104,18.1009,138.12,138.01,25.3597]
[1719432095105,7.2428,138.07,138.01,25.3597]
[1719432095304,18.1009,138.12,138.02,7.2452]
[1719432095618,42.3852,138.15,137.99,13.6834]
[1719432095619,18.1038,138.1,137.99,13.6834]
[1719432095795,0.17,138.11,138.02,7.2448]
[1719432096111,0.17,138.13,138.03,7.2446]
[1719432096112,7.2417,138.09,138.03,7.2446]
[1719432096495,7.2422,138.08,138.02,25.3577]
[1719432096695,7.2431,138.07,138.02,18.1125]
[1719432096888,18.2693,138.13,138.02,18.1125]
[1719432097146,7.2423,138.08,138.02,25.3577]
[1719432097411,7.2416,138.1,138.04,7.244]
[1719432097585,7.2412,138.1,138.04,7.2441]
[1719432097790,7.2419,138.09,138.03,7.2446]
[1719432098110,7.2422,138.08,138.02,25.3576]
[1719432098611,7.2428,138.07,138.02,18.1125]
[1719432098919,18.2693,138.13,138.02,18.1125]
[1719432098920,7.2416,138.1,138.04,7.2441]
[1719432099105,13.76699577,138.15,138.04,18.1095]
[1719432099306,7.2449,138.03,137.97,36.2395]
[1719432099508,18.1046,138.09,137.99,7.2468]
[1719432099810,7.2443,138.04,137.99,7.2467]
[1719432100215,7.2439,138.05,138.0,7.2462]
[1719432100410,7.2427,138.07,138.01,7.2453]
[1719432100810,18.1008,138.12,138.01,7.2453]
[1719432101117,7.243,138.07,138.01,7.2453]
[1719432101409,18.1036,138.1,138.0,18.1148]
[1719432101615,7.2432,138.06,138.0,18.1148]
[1719432102134,13.76699577,138.15,138.06,7.2428]
[1719432102424,7.2411,138.1,138.05,18.1087]
[1719432102798,7.2407,138.11,138.05,25.3522]
[1719432103193,7.2412,138.1,138.05,25.3522]
[1719432103620,7.2412,138.1,138.05,18.1087]
[1719432103931,7.2422,138.08,138.02,25.3576]
[1719432104294,7.2429,138.07,138.02,25.3576]
[1719432104596,18.1014,138.12,138.02,18.1128]
[1719432104811,7.2427,138.07,138.02,25.358]
[1719432104997,7.2432,138.06,138.0,7.2459]
[1719432105323,7.2423,138.08,138.02,7.2451]
[1719432105527,7.2427,138.07,138.02,7.2451]
[1719432106003,7.242,138.09,138.01,18.114]
[1719432106200,7.2431,138.07,138.01,7.2457]
[1719432106409,7.2431,138.07,138.02,7.2451]
[1719432106618,7.2423,138.08,138.02,7.2451]
[1719432106791,7.2417,138.09,138.02,18.1127]
[1719432106995,7.2422,138.08,138.03,7.2446]
[1719432107295,7.2417,138.09,138.03,7.2446]
[1719432107496,18.0981,138.14,138.03,7.2446]
[1719432107720,7.2439,138.05,137.99,18.1164]
[1719432107907,42.7259,138.15,137.99,18.1164]
[1719432108105,7.2436,138.06,138.01,7.2457]
[1719432108434,7.2437,138.05,138.0,7.2463]
[1719432108620,7.2432,138.06,138.01,7.2457]
[1719432108943,7.2442,138.05,137.99,25.3629]
[1719432109238,18.1063,138.08,137.96,7.264]
[1719432109239,7.245,138.03,137.98,7.2469]
[1719432109417,18.1063,138.08,137.96,18.1202]
[1719432109605,36.2031,138.11,138.0,18.1154]
[1719432109606,54.3055,138.11,138.0,18.1154]
[1719432109802,7.2428,138.07,138.02,7.2452]
[1719432110237,7.2423,138.08,138.03,7.2447]
[1719432110416,7.2412,138.1,138.05,7.2434]
[1719432110618,7.2406,138.11,138.05,7.2433]
[1719432111012,7.2406,138.11,138.06,7.243]
[1719432111224,7.2386,138.15,138.1,7.241]
[1719432111720,7.2386,138.15,138.08,18.1049]
[1719432111721,7.2386,138.15,138.09,7.2415]
[1719432111912,7.239,138.14,138.09,7.2415]
[1719432112114,7.2397,138.13,138.08,18.1049]
[1719432112326,18.0958,138.16,138.05,18.1087]
[1719432112530,18.0958,138.16,138.07,7.2426]
[1719432112531,7.2402,138.12,138.07,7.2426]
[1719432112732,7.2408,138.11,138.05,25.3521]
[1719432113034,7.2401,138.12,138.06,7.2429]
[1719432113241,18.0958,138.16,138.05,18.1087]
[1719432113442,7.2417,138.09,138.04,16.6614]
[1719432113734,7.243,138.07,138.03,6.0781]
[1719432113905,18.1009,138.12,138.01,18.1135]
[1719432114109,7.2433,138.06,138.01,18.1135]
[1719432114310,33.4171,138.13,138.01,18.1135]
[1719432114526,33.4171,138.13,138.02,7.2452]
[1719432114527,7.2426,138.08,138.02,7.2452]
[1719432114734,7.2417,138.09,138.03,18.1113]
[1719432114939,7.2421,138.08,138.03,25.356]
[1719432115530,33.4171,138.13,138.04,7.2442]
[1719432115531,7.2417,138.09,138.04,7.2442]
[1719432115939,7.2417,138.09,138.03,25.3559]
[1719432116242,7.2428,138.07,138.03,18.1113]
[1719432116543,7.2428,138.07,138.02,7.2452]
[1719432116842,7.2426,138.08,138.02,7.2449]
[1719432117222,15.3176,138.13,138.02,18.1126]
[1719432117420,18.2684,138.14,138.0,15.1202]
[1719432117421,18.1007,138.12,138.03,7.2444]
[1719432117737,7.2423,138.08,138.03,7.2444]
[1719432118038,7.2413,138.1,138.05,7.2435]
[1719432118535,7.2413,138.1,138.04,7.2441]
[1719432118742,50.0,139.07,138.07,6.6342]
[1719432118743,18.0929,138.18,138.07,6.6342]
[1719432118927,59.6640448,138.22,138.1,25.3433]
[1719432118928,7.2383,138.16,138.1,25.3433]
[1719432119239,7.2383,138.16,138.11,7.2405]
[1719432119424,7.2383,138.16,138.07,6.6342]
[1719432119612,7.2391,138.14,138.09,18.1036]
[1719432120013,18.0947,138.17,138.07,13.8768]
[1719432120310,7.2405,138.12,138.07,13.8768]
[1719432120513,7.2396,138.13,138.08,7.242]
[1719432120834,7.2406,138.11,138.07,6.6342]
[1719432121534,7.2412,138.1,138.04,7.2437]
[1719432121840,18.0958,138.16,138.08,18.105]
[1719432122012,7.2394,138.14,138.08,7.2417]
[1719432122211,7.2399,138.13,138.07,18.1059]
[1719432122417,25.0817538,138.19,138.09,7.2415]
[1719432122617,7.2401,138.12,138.07,25.3482]
[1719432122816,18.0942,138.17,138.08,7.242]
[1719432123038,18.0942,138.17,138.09,7.2416]
[1719432123514,6.9899538,138.19,138.1,7.2411]
[1719432123721,0.8527538,138.19,138.09,16.2069]
[1719432124049,0.8527538,138.19,138.14,7.2387]
[1719432124050,8.0891538,138.19,138.14,7.2387]
[1719432124656,7.2386,138.15,138.11,6.43]
[1719432124817,0.8527538,138.19,138.11,6.43]
[1719432125017,7.2379,138.16,138.11,13.6704]
[1719432125246,7.2383,138.16,138.11,6.43]
[1719432125541,18.9440538,138.19,138.11,6.43]
[1719432125542,0.8527538,138.19,138.11,6.43]
[1719432125744,7.2391,138.14,138.11,6.43]
[1719432125944,0.8527538,138.19,138.11,13.6703]
[1719432126162,7.2383,138.16,138.11,13.6703]
[1719432126440,7.237,138.18,138.13,7.2395]
[1719432126628,0.8527538,138.19,138.15,7.238]
[1719432126830,0.8527538,138.19,138.13,18.0985]
[1719432127020,7.2373,138.18,138.13,25.3376]
[1719432127236,0.8527538,138.19,138.13,18.0985]
[1719432127429,0.8527538,138.19,138.15,7.2384]
[1719432127833,8.0892538,138.19,138.14,7.2389]
[1719432128426,0.8527538,138.19,138.14,7.2386]
[1719432128627,0.8527538,138.19,138.16,7.2376]
[1719432128926,0.8527538,138.19,138.15,18.0952]
[1719432129141,8.0891538,138.19,138.15,18.0952]
[1719432129348,8.0891538,138.19,138.14,7.2388]
[1719432129648,0.8527538,138.19,138.12,18.0992]
[1719432129828,7.2378,138.17,138.12,25.3389]
[1719432130327,7.237,138.18,138.13,7.89569434]
[1719432130641,7.2375,138.17,138.13,0.65629434]
[1719432130845,0.8527538,138.19,138.11,6.43]
[1719432131055,0.8527538,138.19,138.12,36.1993]
[1719432131376,0.8527538,138.19,138.14,7.2388]
[1719432131669,0.8527538,138.19,138.13,18.0979]
[1719432131872,0.8527538,138.19,138.15,7.2381]
[1719432132963,0.8527538,138.19,138.13,18.0979]
[1719432132964,8.0891538,138.19,138.14,7.2389]
[1719432133174,0.8527538,138.19,138.13,18.0979]
[1719432133470,0.8527538,138.19,138.13,25.3374]
[1719432133668,0.8527538,138.19,138.12,7.2399]
[1719432133870,7.2376,138.17,138.12,7.24]
[1719432134054,7.2381,138.16,138.11,13.6705]
[1719432134255,0.8527538,138.19,138.11,6.43]
[1719432134440,0.8527538,138.19,138.11,13.6702]
[1719432134441,7.2383,138.16,138.11,13.6702]
[1719432134644,7.2374,138.18,138.12,7.2396]
[1719432134845,0.8527538,138.19,138.1,18.1018]
[1719432135048,7.2385,138.15,138.1,25.3425]
[1719432135275,0.8527538,138.19,138.1,18.1018]
[1719432135573,7.2371,138.18,138.13,7.2395]
[1719432135743,7.2375,138.17,138.12,18.0999]
[1719432135943,7.2371,138.18,138.12,18.0999]
[1719432136265,8.0895538,138.19,138.14,7.239]
[1719432136466,0.8527538,138.19,138.15,7.2383]
[1719432136972,8.0891538,138.19,138.14,25.3359]
[1719432137344,7.2372,138.18,138.14,18.0971]
[1719432137638,0.8527538,138.19,138.11,25.3404]
[1719432137955,7.238,138.16,138.11,25.3408]
[1719432138271,7.2371,138.18,138.13,7.2391]
[1719432138459,0.8527538,138.19,138.13,18.0986]
[1719432138649,0.8527538,138.19,138.17,7.2373]
[1719432138972,0.8527538,138.19,138.16,7.2378]
[1719432139345,0.8527538,138.19,138.15,25.334]
[1719432139545,0.8527538,138.19,138.16,7.2378]
[1719432139952,0.8527538,138.19,138.15,25.334]
[1719432140157,49.85315726,138.27,138.16,22.3089]
[1719432140158,7.56725726,138.27,138.16,22.3089]
[1719432140472,7.2324,138.27,138.21,7.2351]
[1719432141370,7.56430045,138.32,138.22,18.0858]
[1719432141672,7.8326538,138.33,138.27,7.2318]
[1719432141673,8.4819538,138.33,138.27,7.2318]
[1719432142048,7.2297,138.32,138.27,7.2318]
[1719432142247,7.2302,138.31,138.25,7.2329]
[1719432142744,1.2527538,138.33,138.24,100.0]
[1719432142945,1.2527538,138.33,138.25,0.34]
[1719432143159,1.2527538,138.33,138.29,7.2307]
[1719432143363,1.2527538,138.33,138.25,0.34]
[1719432143551,1.2527538,138.33,138.29,18.0769]
[1719432143754,1.2527538,138.33,138.3,7.2306]
[1719432143956,1.2527538,138.33,138.31,19.50865178]
[1719432144256,1.2527538,138.33,138.32,7.2296]
[1719432144767,1.2527538,138.33,138.31,25.3045]
[1719432145363,1.2527538,138.33,138.28,25.3101]
[1719432145562,1.2527538,138.33,138.26,6.5884]
[1719432145767,1.2527538,138.33,138.28,7.2316]
[1719432146079,1.2527538,138.33,138.29,7.231]
[1719432146267,1.2527538,138.33,138.29,18.0775]
[1719432146454,1.2527538,138.33,138.31,7.2299]
[1719432146651,1.2527538,138.33,138.32,7.2296]
[1719432148771,1.2527538,138.33,138.32,7.5696]
[1719432149179,1.2527538,138.33,138.32,7.2296]
[1719432149372,1.2527538,138.33,138.32,7.5696]
[1719432150076,1.2527538,138.33,138.31,25.3042]
[1719432152383,1.2527538,138.33,138.3,25.3065]
[1719432152882,1.2527538,138.33,138.3,18.076]
[1719432153066,1.2527538,138.33,138.3,25.3066]
[1719432153376,1.2527538,138.33,138.3,18.076]
[1719432154160,1.2527538,138.33,138.31,7.2299]
[1719432154962,1.2527538,138.33,138.27,18.0796]
[1719432155158,7.2301,138.31,138.25,7.233]
[1719432155370,7.2302,138.31,138.25,7.233]
[1719432155577,7.2306,138.3,138.25,7.233]
[1719432155778,7.2306,138.3,138.24,40.34]
[1719432155986,7.2308,138.3,138.24,40.34]
[1719432156184,1.2527538,138.33,138.25,7.2329]
[1719432156483,1.2527538,138.33,138.27,7.2322]
[1719432156484,7.2297,138.32,138.27,7.2322]
[1719432156685,7.2297,138.32,138.26,7.2323]
[1719432157085,7.2301,138.31,138.25,7.233]
[1719432157274,7.2301,138.31,138.26,7.2325]
[1719432157480,7.2301,138.31,138.24,33.1063]
[1719432157481,1.2527538,138.33,138.25,100.0]
[1719432157787,1.2527538,138.33,138.3,18.0753]
[1719432157961,1.2527538,138.33,138.3,25.3056]
[1719432159991,1.2527538,138.33,138.26,36.3317]
[1719432160283,7.231,138.3,138.25,7.2329]
[1719432160479,1.2527538,138.33,138.24,33.1068]
[1719432160781,8.4822538,138.33,138.28,7.2316]
[1719432160982,8.4822538,138.33,138.27,7.232]
[1719432160983,7.2297,138.32,138.27,7.232]
[1719432161289,8.4819538,138.33,138.27,7.232]
[1719432161784,8.4819538,138.33,138.28,18.079]
[1719432162574,1.2527538,138.33,138.22,24.6349]
[1719432162784,16.4631538,138.33,138.24,7.2334]
[1719432162973,18.0742,138.32,138.22,24.6349]
[1719432163169,7.232,138.28,138.23,7.2343]
[1719432163784,24.5838,138.3,138.2,16.0647]
[1719432163991,24.5838,138.3,138.19,18.0901]
[1719432163992,7.2329,138.26,138.21,7.235]
[1719432164293,7.2333,138.25,138.2,7.2357]
[1719432164461,18.0794,138.28,138.19,18.0901]
[1719432164877,7.2341,138.24,138.19,18.0901]
[1719432165371,7.2333,138.25,138.19,25.3265]
[1719432165689,7.2333,138.25,138.2,7.2356]
[1719432166068,7.2329,138.26,138.2,7.2356]
[1719432166695,6.5065,138.3,138.19,18.0901]
[1719432166993,7.2334,138.25,138.19,25.3261]
[1719432167170,7.2338,138.24,138.19,18.0901]
[1719432167588,7.2338,138.24,138.19,25.3264]
[1719432168593,18.0788,138.29,138.19,18.0901]
[1719432169373,18.0788,138.29,138.21,7.2352]
[1719432169577,7.2323,138.27,138.22,7.2346]
[1719432169776,6.5065,138.3,138.21,18.0877]
[1719432169777,7.2327,138.26,138.21,25.3228]
[1719432170087,7.2327,138.26,138.21,18.0877]
[1719432170604,7.2322,138.27,138.21,18.0877]
[1719432171167,7.2328,138.26,138.21,25.3228]
[1719432172237,24.5836,138.3,138.22,7.2346]
[1719432172689,7.2323,138.27,138.22,7.2346]
[1719432172898,7.2328,138.26,138.21,18.0877]
[1719432173969,6.5065,138.3,138.16,16.3301]
[1719432174171,7.2339,138.24,138.18,25.3278]
[1719432174473,7.2339,138.24,138.19,7.2363]
[1719432174969,7.2339,138.24,138.18,25.328]
[1719432175472,7.2339,138.24,138.19,7.2363]
[1719432176209,7.2333,138.25,138.19,7.2363]
[1719432176706,7.2328,138.26,138.2,7.2358]
[1719432177197,7.2323,138.27,138.21,7.2352]
[1719432177579,6.5065,138.3,138.22,18.0865]
[1719432177779,7.2317,138.28,138.23,7.2341]
[1719432178008,7.2312,138.29,138.24,7.2337]
[1719432178183,6.5065,138.3,138.22,25.321]
[1719432178184,7.2319,138.28,138.22,25.321]
[1719432178787,7.2323,138.27,138.22,18.0865]
[1719432178990,7.2328,138.26,138.22,18.0865]
[1719432179187,6.5065,138.3,138.19,18.0902]
[1719432179397,7.2342,138.24,138.19,25.3262]
[1719432179607,18.0795,138.28,138.2,7.2357]
[1719432180101,18.0821,138.26,138.16,34.4238]
[1719432180514,24.5837,138.3,138.17,136.1847]
[1719432180720,7.2325,138.27,138.21,7.235]
[1719432180896,7.2318,138.28,138.22,7.2347]
[1719432181082,7.2318,138.28,138.22,7.2343]
[1719432181284,7.2313,138.29,138.23,7.234]
[1719432181479,6.5065,138.3,138.24,7.2337]
[1719432181778,7.2317,138.28,138.23,25.3196]
[1719432181984,7.2317,138.28,138.23,18.0855]
[1719432182706,6.5065,138.3,138.2,18.0887]
[1719432183005,7.2336,138.25,138.2,25.3245]
[1719432183203,7.2336,138.25,138.2,18.0887]
[1719432183407,7.2338,138.24,138.2,18.0887]